bitfinex-derivatives/quotes_BTCF0:USTF0_20250308
["timestamp","ask_amount","ask_price","bid_price","bid_amount"]
[1741446920828,0.00011497,86482.0,86481.0,1.58821468]
[1741446921622,0.00011497,86482.0,86481.0,1.58721468]
[1741446922423,0.00011497,86482.0,86481.0,1.59021468]
[1741446922830,7e-08,86482.0,86481.0,1.59021468]
[1741446923031,0.0307,86499.0,86481.0,1.47456158]
[1741446923328,0.0307,86499.0,86498.0,0.4764304]
[1741446923528,0.0617,86499.0,86498.0,1.48879198]
[1741446924114,0.0617,86499.0,86498.0,1.54919198]
[1741446925022,0.15854112,86500.0,86499.0,0.115629]
[1741446925228,0.10854112,86500.0,86499.0,1.19079058]
[1741446930529,0.10854112,86500.0,86499.0,1.55159058]
[1741446933039,0.15854112,86500.0,86499.0,1.55159058]
[1741446935030,0.15854112,86500.0,86499.0,1.48879058]
[1741446935235,0.15854112,86500.0,86499.0,1.55299058]
[1741446936032,0.10854112,86500.0,86499.0,1.55299058]
[1741446937736,0.15854112,86500.0,86499.0,1.55299058]
[1741446938540,0.10854112,86500.0,86499.0,1.55299058]
[1741446941636,0.3608,86522.0,86499.0,1.43736158]
[1741446941827,0.0732,86521.0,86515.0,0.3608]
[1741446942138,0.1232,86521.0,86520.0,0.115601]
[1741446942529,0.1232,86521.0,86520.0,1.12796258]
[1741446943033,0.1232,86521.0,86520.0,1.15996258]
[1741446943737,0.1232,86521.0,86520.0,1.17190394]
[1741446945141,0.1536,86521.0,86520.0,1.17190394]
[1741446945527,0.2436,86521.0,86520.0,1.17190394]
[1741446945731,0.1479,86521.0,86520.0,1.13990394]
[1741446945935,0.1536,86521.0,86520.0,1.13990394]
[1741446946747,0.1479,86521.0,86520.0,1.13990394]
[1741446947133,0.1536,86521.0,86520.0,1.13990394]
[1741446947536,0.2436,86521.0,86520.0,1.13990394]
[1741446947736,0.1536,86521.0,86520.0,1.13990394]
[1741446948239,0.2436,86521.0,86520.0,1.13990394]
[1741446948440,0.1479,86521.0,86520.0,1.13990394]
[1741446949038,0.1479,86521.0,86520.0,0.12754236]
[1741446949538,0.1536,86521.0,86520.0,0.12754236]
[1741446950245,0.1536,86521.0,86520.0,0.19124236]
[1741446950737,0.1536,86521.0,86520.0,1.20360394]
[1741446951243,0.1231,86521.0,86520.0,1.20360394]
[1741446953241,0.1558,86521.0,86520.0,1.20360394]
[1741446954839,0.1058,86521.0,86520.0,1.20360394]
[1741446955043,0.0427,86521.0,86520.0,1.20360394]
[1741446955242,0.00876491,86522.0,86521.0,0.1155996]
[1741446955434,0.0639,86531.0,86530.0,0.1155876]
[1741446955639,0.0639,86531.0,86530.0,1.20690918]
[1741446955840,0.00866344,86531.0,86530.0,1.20690918]
[1741446956036,0.0636,86538.0,86537.0,0.1155783]
[1741446956338,0.0636,86538.0,86537.0,1.48873988]
[1741446956940,0.0636,86538.0,86537.0,1.55333988]
[1741446957139,0.0636,86538.0,86537.0,0.5409783]
[1741446957140,0.0679,86538.0,86537.0,0.5409783]
[1741446957336,0.0636,86538.0,86537.0,0.5409783]
[1741446958837,0.0636,86538.0,86537.0,0.55254806]
[1741446959642,0.00861658,86538.0,86537.0,1.56490964]
[1741446959841,0.0639,86553.0,86550.0,0.0577799]
[1741446960042,0.0639,86553.0,86552.0,0.1155582]
[1741446960242,0.1639,86553.0,86552.0,0.1155582]
[1741446960440,0.1015,86553.0,86552.0,0.1155582]
[1741446960633,0.1972,86553.0,86552.0,0.1155582]
[1741446960847,0.1972,86553.0,86551.0,0.1155587]
[1741446961040,0.1972,86553.0,86551.0,0.1155582]
[1741446961235,0.1972,86553.0,86552.0,0.1155582]
[1741446961838,0.1015,86553.0,86552.0,0.1155582]
[1741446962039,0.2972,86553.0,86552.0,0.1155582]
[1741446962242,0.2015,86553.0,86552.0,0.1155582]
[1741446962640,0.2972,86553.0,86552.0,0.1155582]
[1741446963042,0.2472,86553.0,86552.0,0.1155582]
[1741446963336,0.1515,86553.0,86552.0,0.1155582]
[1741446963540,0.1515,86553.0,86550.0,0.1155588]
[1741446963740,0.2015,86553.0,86552.0,0.1155582]
[1741446964950,0.1515,86553.0,86552.0,0.1155582]
[1741446965141,0.2472,86553.0,86552.0,0.1155582]
[1741446965741,0.2972,86553.0,86550.0,0.231119]
[1741446965937,0.2972,86553.0,86551.0,0.1155592]
[1741446966737,0.2972,86553.0,86548.0,0.1155627]
[1741446966938,0.2972,86553.0,86520.0,0.13871554]
[1741446966939,0.3608,86549.0,86520.0,0.13871554]
[1741446967146,0.3608,86538.0,86529.0,0.00017341]
[1741446967337,0.3608,86538.0,86529.0,0.11576181]
[1741446967338,0.05,86530.0,86529.0,0.11576181]
[1741446967544,0.2,86530.0,86529.0,0.11576231]
[1741446968348,0.1403,86530.0,86529.0,0.11776231]
[1741446968751,0.2,86530.0,86529.0,0.11776231]
[1741446969055,0.1403,86530.0,86529.0,0.11776231]
[1741446969743,0.1403,86530.0,86529.0,0.18096231]
[1741446970541,0.2,86530.0,86529.0,0.11876231]
[1741446970748,0.1242,86530.0,86529.0,0.11876231]
[1741446971249,0.2,86530.0,86529.0,0.11876231]
[1741446971457,0.1242,86530.0,86529.0,0.11876231]
[1741446971759,0.1242,86530.0,86529.0,0.11676231]
[1741446971951,0.2,86530.0,86529.0,0.00117341]
[1741446972253,0.2,86530.0,86529.0,0.11676231]
[1741446972457,0.2639,86530.0,86529.0,0.11676231]
[1741446972752,0.2062125,86530.0,86529.0,0.11676231]
[1741446973158,0.2659125,86530.0,86529.0,0.11676231]
[1741446973656,0.1901125,86530.0,86529.0,0.11676231]
[1741446973957,0.2659125,86530.0,86529.0,0.11676231]
[1741446974952,0.2062125,86530.0,86529.0,0.11576231]
[1741446975657,0.2062125,86530.0,86529.0,0.17846231]
[1741446975856,0.2659125,86530.0,86529.0,0.17846231]
[1741446976247,0.1901125,86530.0,86529.0,0.00017341]
[1741446976455,0.6267125,86530.0,86529.0,0.11576231]
[1741446976643,0.5509125,86530.0,86529.0,0.11576231]
[1741446977244,0.6267125,86530.0,86529.0,0.11576231]
[1741446978355,0.5509125,86530.0,86529.0,0.00017341]
[1741446978654,0.6267125,86530.0,86529.0,0.11576231]
[1741446979052,0.5509125,86530.0,86529.0,0.11576231]
[1741446979253,0.6267125,86530.0,86529.0,0.00017341]
[1741446979453,0.5509125,86530.0,86529.0,0.11576231]
[1741446980163,0.6267125,86530.0,86529.0,0.11576231]
[1741446980351,0.5509125,86530.0,86529.0,0.11576231]
[1741446980958,0.6267125,86530.0,86529.0,0.11576231]
[1741446981161,0.6267125,86530.0,86529.0,0.17866231]
[1741446981557,0.6247,86530.0,86529.0,0.17866231]
[1741446981760,0.5509125,86530.0,86529.0,0.17866231]
[1741446981958,0.6267125,86530.0,86529.0,0.00017341]
[1741446982258,0.5509125,86530.0,86529.0,0.00017341]
[1741446982455,0.5509125,86530.0,86529.0,0.11576231]
[1741446982762,0.5509125,86530.0,86529.0,0.00017341]
[1741446982964,0.5509125,86530.0,86529.0,0.11576231]
[1741446984464,0.5489,86530.0,86529.0,0.11576231]
[1741446984971,0.26591253,86530.0,86529.0,0.17906231]
[1741446985152,0.55091253,86530.0,86529.0,0.06347341]
[1741446985550,0.62671253,86530.0,86529.0,0.17906231]
[1741446985950,0.55091253,86530.0,86529.0,0.17906231]
[1741446986959,0.55091253,86530.0,86529.0,0.03217341]
[1741446987165,0.62671253,86530.0,86529.0,0.03217341]
[1741446987567,0.6247,86530.0,86529.0,0.03217341]
[1741446987863,0.62671253,86530.0,86529.0,0.14776231]
[1741446992067,0.55091253,86530.0,86529.0,0.14776231]
[1741446992964,0.55091253,86530.0,86529.0,0.08265986]
[1741446993366,0.55091253,86530.0,86511.0,0.00173376]
[1741446993367,0.1924,86529.0,86511.0,0.00173376]
[1741446993664,0.485,86520.0,86511.0,0.00173376]
[1741446993862,0.26148,86519.0,86514.0,0.1156083]
[1741446994065,0.32558,86519.0,86515.0,0.1156071]
[1741446994264,0.24978,86519.0,86512.0,0.0578057]
[1741446994470,0.32558,86519.0,86518.0,0.1156036]
[1741446994669,0.24978,86519.0,86518.0,0.1156036]
[1741446994970,0.26588,86519.0,86518.0,0.1156036]
[1741446996565,0.26588,86519.0,86518.0,0.1487036]
[1741446996772,0.2678928,86519.0,86518.0,0.1487036]
[1741446997172,0.2518928,86519.0,86518.0,0.1487036]
[1741447000477,0.2352928,86519.0,86518.0,0.1487036]
[1741447000672,0.2308928,86519.0,86518.0,0.1797036]
[1741447000861,0.0520128,86519.0,86518.0,1.19206518]
[1741447001065,0.0923128,86519.0,86518.0,1.19206518]
[1741447001263,0.1020128,86519.0,86518.0,1.19206518]
[1741447002568,0.1,86519.0,86518.0,1.19206518]
[1741447003074,0.0403,86519.0,86518.0,1.19206518]
[1741447003982,0.05,86520.0,86519.0,0.1156023]
[1741447004169,0.05,86520.0,86519.0,1.19376388]
[1741447004575,0.15,86520.0,86519.0,1.19376388]
[1741447005379,0.15,86520.0,86519.0,0.1814023]
[1741447005584,0.2,86520.0,86519.0,0.0658]
[1741447006479,0.27888,86520.0,86519.0,0.0658]
[1741447006782,0.27888,86520.0,86514.0,0.0632]
[1741447006981,0.3608,86515.0,86514.0,0.0632]
[1741447007178,0.5608,86515.0,86503.0,0.033]
[1741447007372,0.3608,86504.0,86503.0,0.1486237]
[1741447007572,0.3608,86504.0,86503.0,0.033]
[1741447007573,0.4968259,86504.0,86503.0,0.033]
[1741447007779,0.4968259,86504.0,86503.0,0.1486237]
[1741447008081,0.5725259,86504.0,86503.0,0.1486237]
[1741447008475,1.4045219,86504.0,86503.0,0.1486237]
[1741447008669,1.42040379,86504.0,86503.0,0.033]
[1741447009088,1.35826302,86504.0,86503.0,0.033]
[1741447009278,1.35826302,86504.0,86496.0,0.115633]
[1741447009483,0.07998189,86503.0,86497.0,0.1156313]
[1741447009686,0.14354112,86503.0,86496.0,0.115633]
[1741447009873,0.16784112,86503.0,86498.0,0.1156296]
[1741447010079,0.23854112,86503.0,86500.0,0.1156272]
[1741447010275,0.16284112,86503.0,86499.0,0.0637]
[1741447010476,0.23854112,86503.0,86499.0,0.179328]
[1741447010776,0.3608,86502.0,86495.0,0.00017331]
[1741447010976,0.4108,86502.0,86495.0,0.00017331]
[1741447011279,0.3608,86496.0,86495.0,0.00017331]
[1741447011481,0.4841,86496.0,86495.0,0.11580771]
[1741447011782,0.5598,86496.0,86495.0,0.11580771]
[1741447012087,0.5598,86496.0,86495.0,0.17890771]
[1741447012284,0.5001,86496.0,86495.0,0.17890771]
[1741447012486,0.5001,86496.0,86495.0,0.21140771]
[1741447012982,0.2,86496.0,86495.0,1.22376929]
[1741447013184,0.15,86496.0,86495.0,1.22376929]
[1741447013386,0.2,86496.0,86495.0,0.21140771]
[1741447013590,0.1403,86496.0,86495.0,0.21140771]
[1741447013982,0.1403,86496.0,86495.0,0.21240771]
[1741447014287,0.2,86496.0,86495.0,0.21240771]
[1741447014491,0.2311,86496.0,86495.0,0.21240771]
[1741447014690,0.2641,86496.0,86495.0,0.21240771]
[1741447015875,0.1403,86496.0,86495.0,0.21240771]
[1741447016385,0.2,86496.0,86495.0,1.22476929]
[1741447017588,0.1403,86496.0,86495.0,1.22576929]
[1741447017888,0.05,86496.0,86495.0,1.22576929]
[1741447018085,0.05,86496.0,86495.0,1.58656929]
[1741447018388,0.05,86496.0,86495.0,1.58556929]
[1741447018590,0.05,86496.0,86495.0,1.58356929]
[1741447018887,0.05,86496.0,86495.0,1.58556929]
[1741447019089,0.15,86496.0,86495.0,1.58556929]
[1741447019392,0.15,86496.0,86495.0,1.58356929]
[1741447019691,0.15,86496.0,86495.0,1.58556929]
[1741447020283,0.05,86496.0,86495.0,1.58556929]
[1741447020486,0.15,86496.0,86495.0,1.22476929]
[1741447021381,0.2,86496.0,86495.0,0.18190771]
[1741447021782,0.20419329,86496.0,86495.0,0.00317331]
[1741447021980,0.18779329,86496.0,86495.0,0.00317331]
[1741447022181,0.20419329,86496.0,86495.0,0.00317331]
[1741447022587,0.28089329,86496.0,86495.0,0.00317331]
[1741447023490,0.27888,86496.0,86495.0,0.00317331]
[1741447023990,0.63968,86496.0,86468.0,0.00173463]
[1741447024191,0.13871554,86492.0,86487.0,0.1156447]
[1741447024493,0.3608,86488.0,86487.0,0.1156447]
[1741447024792,0.4608,86488.0,86487.0,0.1456447]
[1741447025279,0.4841,86488.0,86487.0,0.1456447]
[1741447025480,0.5608,86488.0,86487.0,0.1456447]
[1741447025783,0.5608,86488.0,86487.0,0.1476447]
[1741447026778,0.56281347,86488.0,86487.0,0.002]
[1741447026986,0.56281347,86488.0,86479.0,0.00017341]
[1741447027185,0.0947,86487.0,86479.0,0.11582851]
[1741447027384,0.1447,86487.0,86479.0,0.11582851]
[1741447027581,0.3608,86481.0,86479.0,0.00017341]
[1741447027782,0.0622,86480.0,86479.0,0.00017341]
[1741447027986,0.1122,86480.0,86479.0,0.00017341]
[1741447028693,0.1122,86480.0,86467.0,0.3608]
[1741447028986,0.3608,86474.0,86463.0,0.0648]
[1741447029192,0.3608,86474.0,86457.0,0.37261975]
[1741447029193,0.0634,86473.0,86460.0,0.115681]
[1741447029490,0.3608,86462.0,86460.0,0.115681]
[1741447029785,0.3608,86462.0,86458.0,0.1226414]
[1741447029786,0.0319,86461.0,86459.0,0.1156825]
[1741447030008,0.1145,86461.0,86459.0,0.1156825]
[1741447030183,0.12622523,86461.0,86460.0,0.1156812]
[1741447030385,0.12622523,86461.0,86459.0,0.1156824]
[1741447030688,0.12622523,86461.0,86456.0,0.115686]
[1741447030896,0.16652523,86461.0,86460.0,0.1156812]
[1741447031081,0.13392523,86461.0,86460.0,0.1156812]
[1741447031286,0.1222,86461.0,86460.0,0.1156812]
[1741447032093,0.1262,86461.0,86460.0,0.1156812]
[1741447032287,0.1859,86461.0,86460.0,1.12804278]
[1741447032490,0.0943,86461.0,86460.0,1.12804278]
[1741447032690,0.104,86461.0,86460.0,1.12804278]
[1741447032991,0.156,86461.0,86460.0,1.12804278]
[1741447033195,0.106,86461.0,86460.0,1.12804278]
[1741447033690,0.0463,86461.0,86460.0,1.12804278]
[1741447034088,0.006,86461.0,86460.0,1.12804278]
[1741447034292,0.00017341,86470.0,86460.0,1.12804278]
[1741447034293,0.00017341,86470.0,86461.0,1.01236158]
[1741447034489,0.00017341,86470.0,86469.0,1.48883078]
[1741447034693,0.10017341,86470.0,86469.0,1.48883078]
[1741447035294,0.00017341,86470.0,86469.0,1.52103078]
[1741447035490,0.10017341,86470.0,86469.0,1.52103078]
[1741447035997,0.10117341,86470.0,86469.0,1.52103078]
[1741447036296,0.15117341,86470.0,86469.0,1.52103078]
[1741447037687,0.05117341,86470.0,86469.0,1.52103078]
[1741447038987,0.05017341,86470.0,86469.0,1.52203078]
[1741447039696,0.05017341,86470.0,86469.0,1.52103078]
[1741447040087,0.05017341,86470.0,86469.0,1.52203078]
[1741447040894,0.15017341,86470.0,86469.0,1.52203078]
[1741447041095,0.05017341,86470.0,86469.0,1.52203078]
[1741447041294,0.15017341,86470.0,86469.0,1.52203078]
[1741447041892,0.15017341,86470.0,86469.0,1.52303078]
[1741447042091,0.05017341,86470.0,86469.0,1.52303078]
[1741447042691,0.05017341,86470.0,86469.0,1.52203078]
[1741447043197,0.05017341,86470.0,86469.0,1.52103078]
[1741447043591,0.05017341,86470.0,86469.0,1.52203078]
[1741447044299,0.05017341,86470.0,86469.0,1.52303078]
[1741447047400,0.05017341,86470.0,86469.0,1.16223078]
[1741447047596,0.05017341,86470.0,86469.0,1.16123078]
[1741447047791,0.05017341,86470.0,86469.0,1.19443078]
[1741447050098,0.05017341,86470.0,86469.0,1.19343078]
[1741447050903,0.15017341,86470.0,86469.0,1.19343078]
[1741447051605,0.15017341,86470.0,86469.0,1.19443078]
[1741447051804,0.15017341,86470.0,86469.0,1.19643078]
[1741447052805,0.15017341,86470.0,86469.0,1.19443078]
[1741447053002,0.15017341,86470.0,86469.0,1.19243078]
[1741447053409,0.05017341,86470.0,86469.0,1.19243078]
[1741447053605,0.15017341,86470.0,86469.0,1.19243078]
[1741447053908,0.20017341,86470.0,86469.0,1.19243078]
[1741447054707,0.20017341,86470.0,86469.0,0.1478692]
[1741447055110,0.20017341,86470.0,86469.0,0.1795692]
[1741447055709,0.20117341,86470.0,86469.0,0.1795692]
[1741447057507,0.20117341,86470.0,86469.0,0.1156692]
[1741447059021,0.26567341,86470.0,86469.0,0.1156692]
[1741447061017,0.26567341,86470.0,86458.0,0.3608]
[1741447061217,0.40438895,86470.0,86467.0,0.1156714]
[1741447061418,0.26567341,86470.0,86467.0,0.1156714]
[1741447061712,0.26567341,86470.0,86465.0,0.1156739]
[1741447061913,0.26567341,86470.0,86458.0,0.3608]
[1741447062113,0.26567341,86470.0,86466.0,0.1156722]
[1741447062321,0.20597341,86470.0,86469.0,0.1156692]
[1741447062623,0.26467341,86470.0,86469.0,0.05052723]
[1741447062825,0.26467341,86470.0,86467.0,0.0578359]
[1741447063015,0.20497341,86470.0,86469.0,0.1156692]
[1741447066112,0.20597341,86470.0,86469.0,0.1156692]
[1741447066725,0.26567341,86470.0,86469.0,0.1156692]
[1741447067423,0.20597341,86470.0,86469.0,0.1156692]
[1741447068321,0.20597341,86470.0,86469.0,1.12803078]
[1741447068726,0.16567341,86470.0,86469.0,1.12803078]
[1741447069126,0.26567341,86470.0,86469.0,1.12803078]
[1741447069313,0.21567341,86470.0,86469.0,1.12803078]
[1741447069717,0.11567341,86470.0,86469.0,1.12803078]
[1741447069917,0.26567341,86470.0,86469.0,1.12803078]
[1741447071229,0.16567341,86470.0,86469.0,1.12803078]
[1741447073328,0.16467341,86470.0,86469.0,1.13003078]
[1741447073815,0.13297341,86470.0,86469.0,1.13003078]
[1741447074016,0.13297341,86470.0,86469.0,1.13203078]
[1741447074431,0.10017341,86470.0,86469.0,1.13203078]
[1741447074927,0.10017341,86470.0,86469.0,0.1196692]
[1741447075132,0.13277341,86470.0,86469.0,1.13203078]
[1741447075326,0.13277341,86470.0,86469.0,1.13003078]
[1741447075630,0.23277341,86470.0,86469.0,1.13003078]
[1741447075833,0.13277341,86470.0,86469.0,1.13003078]
[1741447076329,0.23277341,86470.0,86469.0,1.13003078]
[1741447076531,0.13277341,86470.0,86469.0,1.13003078]
[1741447076831,0.23277341,86470.0,86469.0,1.13003078]
[1741447077235,0.13277341,86470.0,86469.0,1.13003078]
[1741447077624,0.08277341,86470.0,86469.0,1.13003078]
[1741447078828,0.08277341,86470.0,86469.0,1.12803078]
[1741447079025,0.08277341,86470.0,86469.0,1.12903078]
[1741447080428,0.05017341,86470.0,86469.0,1.12903078]
[1741447080629,0.00017341,86470.0,86469.0,1.12903078]
[1741447081331,0.01311926,86490.0,86486.0,0.1156464]
[1741447081532,0.22957031,86487.0,86486.0,1.48880798]
[1741447081732,9e-08,86487.0,86486.0,1.63880798]
[1741447081932,0.12446395,86503.0,86499.0,1.01236149]
[1741447081933,8e-08,86503.0,86499.0,1.01236149]
[1741447082132,0.22160722,86504.0,86503.0,1.12798519]
[1741447082330,0.04308391,86504.0,86503.0,1.12798519]
[1741447082642,0.04308391,86504.0,86503.0,1.31048519]
[1741447083140,0.00017341,86512.0,86503.0,1.19486149]
[1741447083339,0.00017341,86512.0,86511.0,1.48877449]
[1741447083533,0.4493948,86525.0,86524.0,0.1155956]
[1741447083735,0.4493948,86525.0,86524.0,1.48875709]
[1741447083736,0.45794798,86525.0,86524.0,1.48875709]
[1741447084845,0.00855318,86525.0,86524.0,1.48875709]
[1741447085033,0.00017341,86533.0,86532.0,0.1155849]
[1741447085234,0.00017341,86533.0,86532.0,1.48874639]
[1741447085635,0.00017341,86533.0,86532.0,1.52164639]
[1741447086246,0.00893489,86533.0,86532.0,1.52164639]
[1741447086446,0.00017341,86533.0,86532.0,1.55304639]
[1741447086844,0.00017341,86533.0,86532.0,1.56493465]
[1741447087436,0.00217341,86533.0,86532.0,1.56493465]
[1741447088940,0.00017341,86533.0,86532.0,1.56693465]
[1741447089442,0.0088448,86533.0,86532.0,1.56693465]
[1741447089647,1e-08,86533.0,86532.0,1.56693465]
[1741447090245,1e-08,86533.0,86532.0,1.71693465]
[1741447091139,1e-08,86533.0,86532.0,0.4783849]
[1741447091347,0.16320001,86533.0,86532.0,0.1175849]
[1741447091650,0.06320001,86533.0,86532.0,1.13194639]
[1741447092148,0.16320001,86533.0,86532.0,0.004]
[1741447092346,0.16320001,86533.0,86532.0,0.1195849]
[1741447094253,0.16320001,86533.0,86532.0,0.004]
[1741447094254,0.27878361,86533.0,86532.0,0.004]
[1741447095150,0.32878361,86533.0,86532.0,0.002]
[1741447095349,0.21320001,86533.0,86532.0,0.002]
[1741447095749,0.1155907,86528.0,86522.0,0.1155977]
[1741447095959,0.05,86526.0,86522.0,0.1155977]
[1741447096147,0.065,86525.0,86523.0,0.1155961]
[1741447096346,0.0331,86524.0,86523.0,0.1155961]
[1741447096544,0.1233,86524.0,86523.0,0.1155961]
[1741447096749,0.1886,86524.0,86523.0,0.1155961]
[1741447097150,0.1376,86524.0,86523.0,0.1155961]
[1741447098151,0.0653,86524.0,86523.0,1.12795759]
[1741447098351,0.0322,86524.0,86523.0,1.19015759]
[1741447098758,0.0352,86524.0,86523.0,1.19015759]
[1741447098953,1e-08,86533.0,86532.0,0.1155849]
[1741447099145,0.0331,86552.0,86551.0,0.1155596]
[1741447099548,0.0331,86552.0,86551.0,1.12792109]
[1741447101753,0.1331,86552.0,86551.0,1.12792109]
[1741447102156,0.1659,86552.0,86539.0,0.3608]
[1741447102456,0.2155689,86544.0,86539.0,0.3608]
[1741447102657,0.2155689,86544.0,86540.0,0.1155738]
[1741447102853,0.0328,86543.0,86529.0,0.1155884]
[1741447103060,0.1,86535.0,86526.0,0.0577962]
[1741447103255,0.1483823,86534.0,86526.0,0.057796]
[1741447103457,0.1155861,86532.0,86529.0,0.1155881]
[1741447103646,0.1,86535.0,86530.0,0.1155876]
[1741447103647,0.0828,86531.0,86530.0,0.1155876]
[1741447104057,0.0328,86531.0,86530.0,0.1155876]
[1741447104458,0.0328,86531.0,86530.0,1.12794909]
[1741447105263,0.0308,86531.0,86530.0,1.16044909]
[1741447105453,0.0308,86531.0,86530.0,1.12794909]
[1741447105654,0.1308,86531.0,86525.0,0.3608]
[1741447105862,0.0316,86530.0,86525.0,0.418597]
[1741447106063,0.0316,86530.0,86529.0,0.1155889]
[1741447106265,0.1091,86530.0,86529.0,0.1155889]
[1741447106465,0.1316,86530.0,86525.0,0.3608]
[1741447106759,0.1316,86530.0,86527.0,0.1155912]
[1741447106960,0.1776,86530.0,86525.0,0.4763937]
[1741447107159,0.1155892,86529.0,86525.0,0.5919876]
[1741447107361,0.1276,86530.0,86525.0,0.4763937]
[1741447107560,0.1776,86530.0,86528.0,0.1155902]
[1741447107764,0.1776,86530.0,86529.0,0.1155889]
[1741447107959,0.0678,86530.0,86529.0,0.1155889]
[1741447108356,0.1276,86530.0,86525.0,0.3608]
[1741447108556,0.0312,86529.0,86527.0,0.1155906]
[1741447108750,0.115593,86526.0,86525.0,0.3608]
[1741447108957,0.1155963,86524.0,86522.0,0.00190685]
[1741447109155,0.1,86524.0,86522.0,0.11750435]
[1741447109358,0.0312,86523.0,86522.0,0.11750435]
[1741447109956,0.1312,86523.0,86522.0,0.11750435]
[1741447110262,0.1316,86523.0,86522.0,0.11750435]
[1741447110459,0.1641,86523.0,86522.0,0.11750435]
[1741447110668,0.1641,86523.0,86522.0,0.11750515]
[1741447110965,0.1661,86523.0,86522.0,0.11750515]
[1741447111165,0.1063,86523.0,86522.0,0.11750515]
[1741447111367,0.1661,86523.0,86522.0,0.11750515]
[1741447112469,0.1691,86523.0,86522.0,0.11750515]
[1741447113568,0.0691,86523.0,86522.0,1.12986664]
[1741447114060,0.0691,86523.0,86522.0,1.49066664]
[1741447114266,0.0691,86523.0,86522.0,1.52226664]
[1741447114461,0.0369,86523.0,86522.0,1.52226664]
[1741447115054,0.004,86523.0,86522.0,1.52226664]
[1741447115964,0.001,86523.0,86522.0,1.52226664]
[1741447116666,0.032,86537.0,86536.0,0.1155796]
[1741447116856,0.0623,86537.0,86536.0,0.1155796]
[1741447117057,0.1623,86537.0,86536.0,0.1155796]
[1741447117253,0.0623,86537.0,86536.0,0.1155796]
[1741447118461,0.1623,86537.0,86514.0,0.3608]
[1741447118660,0.476397,86523.0,86522.0,0.00190685]
[1741447118961,0.0402,86523.0,86522.0,0.11750515]
[1741447119269,0.0303,86524.0,86523.0,0.115597]
[1741447119568,0.1303,86524.0,86523.0,0.115597]
[1741447119767,0.0978,86524.0,86523.0,0.115597]
[1741447119967,0.2133956,86524.0,86523.0,0.115597]
[1741447120169,0.0978,86524.0,86523.0,0.115597]
[1741447120356,0.1303,86524.0,86523.0,0.115597]
[1741447121865,0.1313,86524.0,86522.0,0.00190685]
[1741447122173,0.0629,86523.0,86522.0,0.11750475]
[1741447122463,0.1629,86523.0,86522.0,0.11750475]
[1741447122671,0.195,86523.0,86522.0,0.11750475]
[1741447123169,0.1811,86523.0,86522.0,0.11750475]
[1741447123365,0.197,86523.0,86522.0,0.11750475]
[1741447124362,0.312597,86523.0,86522.0,0.11750475]
[1741447124668,0.0346,86523.0,86522.0,1.12986624]
[1741447124864,0.002,86523.0,86522.0,1.56942624]
[1741447125075,0.04237748,86538.0,86537.0,0.1155783]
[1741447125266,0.03,86538.0,86537.0,1.12793979]
[1741447125667,0.00017331,86539.0,86538.0,0.1155769]
[1741447125873,0.00017331,86539.0,86538.0,1.12793839]
[1741447126066,0.00017331,86539.0,86538.0,1.19253839]
[1741447126869,0.00017331,86539.0,86538.0,1.20412789]
[1741447127267,0.00417331,86539.0,86538.0,1.20412789]
[1741447129473,0.00017331,86539.0,86538.0,1.20412789]
[1741447130572,0.00017331,86539.0,86538.0,1.92572789]
[1741447130870,0.00017331,86539.0,86538.0,1.93172789]
[1741447132566,0.00017331,86539.0,86538.0,1.93072789]
[1741447133075,0.00017331,86539.0,86538.0,1.93472789]
[1741447133468,0.00017331,86539.0,86538.0,1.93372789]
[1741447134263,0.00017331,86539.0,86538.0,1.93272789]
[1741447134478,0.10017331,86539.0,86538.0,1.90112789]
[1741447134673,0.00017331,86539.0,86538.0,1.90112789]
[1741447135577,0.00017331,86539.0,86538.0,1.17952789]
[1741447136078,0.00017331,86539.0,86538.0,1.54032789]
[1741447136280,0.00017331,86539.0,86538.0,1.56822789]
[1741447136471,0.00017331,86539.0,86538.0,1.57222789]
[1741447136775,0.00017331,86539.0,86538.0,1.56922789]
[1741447137277,0.00017331,86539.0,86538.0,1.56522789]
[1741447137473,0.00017331,86539.0,86538.0,1.53332789]
[1741447137776,0.00017331,86539.0,86538.0,1.53432789]
[1741447137974,0.00017331,86539.0,86538.0,1.53632789]
[1741447138276,0.00017331,86539.0,86538.0,0.3638]
[1741447138573,0.00017331,86539.0,86538.0,0.1185769]
[1741447138970,0.10017331,86539.0,86538.0,0.1185769]
[1741447139571,0.10017331,86539.0,86528.0,0.1155892]
[1741447139772,0.3608,86530.0,86528.0,0.1155897]
[1741447139976,0.18089,86529.0,86526.0,0.1155928]
[1741447140273,0.1698911,86528.0,86525.0,0.115594]
[1741447140472,0.0321,86527.0,86526.0,0.115593]
[1741447140672,0.0364,86527.0,86526.0,0.115593]
[1741447140979,0.0864,86527.0,86526.0,0.115593]
[1741447141280,0.1821,86527.0,86526.0,0.115593]
[1741447142983,0.1341,86527.0,86526.0,0.115593]
[1741447143383,0.1651,86527.0,86526.0,0.115593]
[1741447144183,0.1053,86527.0,86526.0,1.12795449]
[1741447144480,0.0651,86527.0,86526.0,1.12795449]
[1741447146083,0.0661,86527.0,86526.0,1.12795449]
[1741447146292,0.001,86527.0,86526.0,1.12895449]
[1741447146481,0.001,86527.0,86526.0,1.19105449]
[1741447146981,0.001,86527.0,86526.0,1.19005449]
[1741447147178,0.001,86527.0,86526.0,1.19105449]
[1741447148083,0.0314,86538.0,86526.0,0.689693]
[1741447148285,0.0577685,86568.0,86538.0,1.01236149]
[1741447148588,0.033,86551.0,86550.0,0.1155609]
[1741447148785,0.033,86551.0,86550.0,0.1760609]
[1741447148980,0.033,86551.0,86550.0,1.15802239]
[1741447149987,0.1659,86551.0,86550.0,1.12792239]
[1741447150186,0.0659,86551.0,86550.0,1.12792239]
[1741447150388,0.0659,86551.0,86550.0,0.1155609]
[1741447150389,0.1375,86551.0,86550.0,0.1155609]
[1741447150689,0.1395,86551.0,86550.0,0.1155609]
[1741447151684,0.0748,86551.0,86550.0,0.1155609]
[1741447151988,0.0722,86551.0,86550.0,0.1155609]
[1741447152394,0.1395,86551.0,86550.0,0.1155609]
[1741447152588,0.0679,86551.0,86550.0,0.1155609]
[1741447152896,0.0679,86551.0,86550.0,1.12792239]
[1741447153087,0.036,86551.0,86550.0,1.12792239]
[1741447153287,0.036,86551.0,86550.0,1.19112239]
[1741447154385,0.036,86551.0,86550.0,1.26988239]
[1741447154894,0.036,86551.0,86550.0,1.28171594]
[1741447160593,0.02798664,86580.0,86557.0,1.01236149]